lending/lending_fUSD_20251124
["ID","MTS","AMOUNT","RATE_DAILY","PERIOD"]
[394818096,1763982639319,-500.0,0.00017999,2]
[394818097,1763982639328,-153.70266157,0.00017999,2]
[394818098,1763982639337,-150.0,0.00017999,2]
[394818099,1763982639347,-150.0,0.00017999,2]
[394818100,1763982639356,-166.08476855,0.00017999,2]
[394818101,1763982639366,-153.3100467,0.00017999,2]
[394818102,1763982639376,-150.0,0.00017999,2]
[394818103,1763982639386,-500.0,0.00017999,2]
[394818104,1763982639395,-500.0,0.00017999,2]
[394818105,1763982639405,-500.0,0.00017999,2]
[394818106,1763982639415,-500.0,0.00017999,2]
[394818107,1763982639424,-641.7495824,0.00017999,2]
[394818108,1763982639434,-1196.32,0.00017999,2]
[394818109,1763982639443,-150.0,0.00017999,2]
[394818110,1763982639452,-151.73344126,0.00017999,2]
[394818111,1763982639462,-500.0,0.00017999,2]
[394818112,1763982639472,-174.57945306,0.00017999,2]
[394818113,1763982639482,-500.0,0.00017999,2]
[394818114,1763982639491,-150.0,0.00017999,2]
[394818115,1763982639500,-150.0,0.00017999,2]
[394818116,1763982639510,-150.0,0.00017999,2]
[394818117,1763982639519,-150.0,0.00017999,2]
[394818118,1763982639527,-500.0,0.00017999,2]
[394818119,1763982639536,-500.0,0.00017999,2]
[394818120,1763982639545,-500.0,0.00017999,2]
[394818121,1763982639555,-500.0,0.00017999,2]
[394818122,1763982639563,-500.0,0.00017999,2]
[394818123,1763982639572,-500.0,0.00017999,2]
[394818124,1763982639582,-500.0,0.00017999,2]
[394818125,1763982639591,-500.0,0.00017999,2]
[394818126,1763982639600,-500.0,0.00017999,2]
[394818127,1763982639609,-500.0,0.00017999,2]
[394818128,1763982639619,-500.0,0.00017999,2]
[394818129,1763982639629,-500.0,0.00017999,2]
[394818130,1763982639638,-438.72,0.00017999,2]
[394818131,1763982639648,-500.0,0.00017999,2]
[394818132,1763982639657,-485.41944203,0.00017999,2]
[394818133,1763982639666,-500.0,0.00017999,2]
[394818134,1763982639676,-500.0,0.00017999,2]
[394818135,1763982639686,-336.03492657,0.00017999,2]
[394818136,1763982639695,-500.0,0.00017999,2]
[394818137,1763982639705,-500.0,0.00017999,2]
[394818138,1763982639714,-500.0,0.00017999,2]
[394818139,1763982639723,-500.0,0.00017999,2]
[394818140,1763982639733,-500.0,0.00017999,2]
[394818141,1763982639748,-500.0,0.00017999,2]
[394818142,1763982639757,-439.74156925,0.00017999,2]
[394818143,1763982639767,-150.0,0.00018,2]
[394818144,1763982639777,-1010.58945076,0.00018,2]
[394818145,1763982639787,-3992291.03120161,0.00018,2]
[394818146,1763982639817,-999.8506,0.00018,2]
[394818147,1763982639829,-1000.51193,0.00018,2]
[394818148,1763982639839,-506.24704117,0.00018,2]
[394818149,1763982639850,-1895.8600235,0.00018,2]
[394818150,1763982639861,-2501.75175221,0.00018,2]
[394818151,1763982639874,-480.66000001,0.00018,2]
[394818157,1763982640095,-500.76130664,0.00017873,2]
[394818158,1763982640104,-850.28426266,0.00018,2]
[394818159,1763982640149,-251.19059056,0.00018,2]
[394818160,1763982640161,-783808.87820895,0.00018,2]
[394818161,1763982640256,-7820.37534078,0.00018,2]
[394818162,1763982640267,-523.34287504,0.00018,2]
[394818163,1763982640278,-677.97728923,0.00018,2]
[394818164,1763982640309,-1941.26617813,0.00018,2]
[394818165,1763982640363,-5357.7236226,0.00018,2]
[394818166,1763982640374,-1496.21232,0.00018,2]
[394818197,1763982644540,-526.813,0.00018,2]
[394818198,1763982644551,-380.05726252,0.00018,2]
[394818199,1763982644593,-983.66560362,0.00018,2]
[394818200,1763982644604,-8518.80126694,0.00018,2]
[394818201,1763982644616,-490.0,0.00018,2]
[394818202,1763982644647,-299.27013457,0.00018,2]
[394818205,1763982646176,-945135.65990028,0.00018,2]
[394818206,1763982646281,-2742.3770071,0.00018,2]
[394818210,1763982677429,150.0,0.00017766,120]
[394818211,1763982888891,155.76,8.699e-05,2]
[394818212,1763982889068,155.76,9.21e-05,2]
[394818213,1763982889465,155.76,9.722e-05,2]
[394818214,1763982889663,155.76,0.00010234,2]
[394818215,1763982889906,155.76,0.00010746,2]
[394818216,1763982890095,155.76,0.00011257,2]
[394818217,1763982890426,155.76,0.00011769,2]
[394818218,1763982890512,155.76,0.00012281,2]
[394818219,1763982890707,155.76,0.00012792,2]
[394818220,1763982890902,155.76,0.00013304,2]
[394818221,1763982891105,155.76,0.00013816,2]
[394818222,1763982891289,155.76,0.00014327,2]
[394818223,1763982891479,155.76,0.00014839,2]
[394818224,1763982891671,155.76,0.00015351,2]
[394818234,1763983596541,-155.76,0.00015863,2]
[394818235,1763983596564,-166.66,0.00015919,2]
[394818236,1763983596590,-8089.48,0.0001618,2]
[394818243,1763983786249,-344761.52627693,0.00042241,30]
[394818244,1763983786271,-10667.33626195,0.00042241,30]
[394818245,1763983786295,-286305.32972279,0.00042241,30]
[394818246,1763983786317,-1003.0,0.00042241,30]
[394818247,1763983786340,-429.0,0.00042241,120]
[394818248,1763983786362,-1000.0,0.00042241,30]
[394818249,1763983786384,-1000.0,0.00042241,30]
[394818250,1763983786406,-1000.0,0.00042241,30]
[394818251,1763983786427,-1000.0,0.00042241,30]
[394818252,1763983786450,-1000.0,0.00042241,30]
[394818253,1763983786473,-1000.0,0.00042241,30]
[394818254,1763983786495,-1000.0,0.00042241,30]
[394818255,1763983786517,-1000.0,0.00042241,30]
[394818256,1763983786539,-1000.0,0.00042241,30]
[394818257,1763983786562,-478.11219866,0.00042241,30]
[394818258,1763983786584,-1000.0,0.00042241,30]
[394818259,1763983786606,-1000.0,0.00042241,30]
[394818260,1763983786628,-668.0,0.00042241,30]
[394818261,1763983786651,-286.0,0.00042241,120]
[394818262,1763983786673,-588.0,0.00042241,30]
[394818263,1763983786696,-252.0,0.00042241,120]
[394818264,1763983786720,-1000.0,0.00042241,60]
[394818265,1763983786742,-1000.19839139,0.00042241,30]
[394818266,1763983786765,-861.83195479,0.00042241,30]
[394818267,1763983786788,-1000.0,0.00042241,60]
[394818268,1763983786811,-1000.0,0.00042241,60]
[394818269,1763983786836,-1000.0,0.00042241,30]
[394818270,1763983786858,-1189.07518394,0.00042241,60]
[394818271,1763983786881,-1000.0,0.00042241,30]
[394818272,1763983786904,-1000.0,0.00042241,60]
[394818273,1763983786927,-1000.0,0.00042241,30]
[394818274,1763983786951,-1000.0,0.00042241,120]
[394818275,1763983786974,-1000.0,0.00042241,60]
[394818276,1763983786997,-1000.0,0.00042241,120]
[394818277,1763983787021,-200.0,0.00042241,30]
[394818278,1763983787044,-300.0,0.00042241,30]
[394818279,1763983787067,-1000.0,0.00042241,30]
[394818280,1763983787090,-1000.0,0.00042241,30]
[394818281,1763983787117,-1000.0,0.00042241,30]
[394818282,1763983787139,-1000.0,0.00042241,120]
[394818283,1763983787163,-1000.0,0.00042241,30]
[394818284,1763983787187,-1000.0,0.00042241,60]
[394818285,1763983787209,-1000.0,0.00042241,60]
[394818286,1763983787231,-1000.0,0.00042241,60]
[394818287,1763983787253,-1000.0,0.00042241,60]
[394818288,1763983787276,-1009.30329881,0.00042241,30]
[394818289,1763983787298,-1000.0,0.00042241,60]
[394818290,1763983787321,-173.5759801,0.00042241,60]
[394818291,1763983787343,-1000.0,0.00042241,30]
[394818292,1763983787366,-1000.0,0.00042241,30]
[394818293,1763983787389,-1000.0,0.00042241,30]
[394818294,1763983787412,-1000.0,0.00042241,30]
[394818295,1763983787435,-1000.0,0.00042241,30]
[394818296,1763983787458,-1000.0,0.00042241,30]
[394818297,1763983787480,-1000.0,0.00042241,30]
[394818298,1763983787503,-1000.0,0.00042241,30]
[394818299,1763983787526,-1000.0,0.00042241,30]
[394818300,1763983787549,-749.38572,0.00042241,60]
[394818301,1763983787572,-199.26839,0.00042241,60]
[394818302,1763983787594,-749.38572,0.00042241,60]
[394818303,1763983787617,-199.26839,0.00042241,60]
[394818304,1763983787639,-199.26839,0.00042241,60]
[394818305,1763983787662,-749.38572,0.00042241,60]
[394818306,1763983787685,-199.26839,0.00042241,60]
[394818307,1763983787708,-749.38572,0.00042241,60]
[394818308,1763983787731,-199.26839,0.00042241,60]
[394818309,1763983787756,-749.38572,0.00042241,60]
[394818310,1763983787777,-1000.0,0.00042241,30]
[394818311,1763983787800,-432.22860971,0.00042241,120]
[394818312,1763983787824,-1000.0,0.00042241,60]
[394818313,1763983788026,-1000.0,0.00042241,30]
[394818314,1763983788050,-1000.0,0.00042241,120]
[394818315,1763983788074,-1000.0,0.00042241,60]
[394818316,1763983788098,-150.0,0.00042241,30]
[394818317,1763983788125,-452.32362992,0.00042241,30]
[394818318,1763983788148,-336.76103435,0.00042241,120]
[394818319,1763983788173,-1243.14589007,0.00042241,90]
[394818320,1763983788196,-154.64950397,0.00042241,30]
[394818321,1763983788220,-159.99999,0.00042241,120]
[394818322,1763983788243,-537.85247161,0.00042241,30]
[394818323,1763983788265,-616.88287644,0.00042241,60]
[394818324,1763983788287,-402.16730386,0.00042241,30]
[394818325,1763983788309,-1593.58804214,0.00042241,120]
[394818326,1763983788332,-339.30970485,0.00042241,91]
[394818327,1763983788355,-922.40646586,0.00042241,30]
[394818328,1763983788377,-592.0495316,0.00042241,120]
[394818329,1763983788399,-1056.39866594,0.00042241,30]
[394818330,1763983788422,-717.40538282,0.00042241,120]
[394818331,1763983788445,-517.09169162,0.00042241,120]
[394818332,1763983788467,-778.21479815,0.00042241,30]
[394818333,1763983788490,-1927.11313851,0.00042241,120]
[394818334,1763983788512,-248.99714581,0.00042241,120]
[394818335,1763983788535,-583.64149317,0.00042241,120]
[394818336,1763983788558,-865.68164989,0.00042241,30]
[394818337,1763983788580,-269.37967379,0.00042241,120]
[394818338,1763983788602,-1072.28487569,0.00042241,30]
[394818339,1763983788624,-207.16983629,0.00042241,30]
[394818340,1763983788645,-770.96551598,0.00042241,30]
[394818341,1763983788668,-192.46470705,0.00042241,120]
[394818342,1763983788691,-399.26553432,0.00042241,120]
[394818343,1763983788713,-211.54130302,0.00042241,120]
[394818344,1763983788735,-195.10092356,0.00042241,120]
[394818345,1763983788757,-1012.92759359,0.00042241,120]
[394818346,1763983788779,-181.77561472,0.00042241,120]
[394818347,1763983788801,-357.21673018,0.00042241,120]
[394818348,1763983788823,-903.31368281,0.00042241,30]
[394818349,1763983788845,-245.42954883,0.00042241,30]
[394818350,1763983788868,-2406.00401406,0.00042241,120]
[394818351,1763983788890,-912.14201859,0.00042241,30]
[394818352,1763983788912,-939.46227427,0.00042241,30]
[394818353,1763983788935,-400.73937954,0.00042241,90]
[394818354,1763983788957,-856.78403952,0.00042241,120]
[394818355,1763983788979,-1275.51513677,0.00042241,120]
[394818356,1763983789002,-982.50621785,0.00042241,30]
[394818357,1763983789024,-1332.09599713,0.00042241,120]
[394818358,1763983789047,-373.99982594,0.00042241,120]
[394818359,1763983789069,-219.89637302,0.00042241,30]
[394818360,1763983789091,-618.88819562,0.00042241,30]
[394818361,1763983789117,-1015.30792075,0.00042241,30]
[394818362,1763983789139,-652.75958741,0.00042241,120]
[394818363,1763983789162,-2169.53968335,0.00042241,120]
[394818364,1763983789185,-707.39851003,0.00042241,120]
[394818365,1763983789207,-217.40676798,0.00042241,120]
[394818366,1763983789230,-1225.64982238,0.00042241,120]
[394818367,1763983789252,-370.96966657,0.00042241,30]
[394818368,1763983789274,-205.85119931,0.00042241,30]
[394818369,1763983789296,-1282.34375367,0.00042241,120]
[394818370,1763983789318,-1378.50459216,0.00042241,120]
[394818371,1763983789340,-467.77827204,0.00042241,30]
[394818372,1763983789363,-284.40246608,0.00042241,120]
[394818373,1763983789385,-1504.83691273,0.00042241,120]
[394818374,1763983789407,-1068.73239091,0.00042241,30]
[394818375,1763983789434,-506.5124343,0.00042241,120]
[394818376,1763983789456,-239.19448567,0.00042241,120]
[394818377,1763983789479,-660.16217828,0.00042241,120]
[394818378,1763983789502,-1076.32425576,0.00042241,120]
[394818379,1763983789524,-499.73135214,0.00042241,120]
[394818380,1763983789550,-2257.85483096,0.00042241,120]
[394818381,1763983789572,-888.66437294,0.00042241,120]
[394818382,1763983789594,-724.11334413,0.00042241,120]
[394818383,1763983789617,-947.62678394,0.00042241,120]
[394818384,1763983789644,-493.47769993,0.00042241,30]
[394818385,1763983789668,-997.0,0.00042241,30]
[394818386,1763983789690,-663.84870677,0.00042241,120]
[394818387,1763983789713,-321.13158107,0.00042241,31]
[394818388,1763983789736,-218.51611667,0.00042241,30]
[394818389,1763983789758,-708.51714874,0.00042241,60]
[394818390,1763983789782,-1137.6939912,0.00042241,120]
[394818391,1763983789805,-672.60595277,0.00042241,30]
[394818392,1763983789828,-933.26719547,0.00042241,30]
[394818393,1763983789851,-880.2390759,0.00042241,30]
[394818394,1763983789875,-380.29143935,0.00042241,120]
[394818395,1763983789901,-709.59647572,0.00042241,120]
[394818396,1763983789924,-682.18490078,0.00042241,60]
[394818397,1763983789947,-215.45777143,0.00042241,30]
[394818398,1763983789971,-2118.88346016,0.00042241,120]
[394818399,1763983789995,-1407.69159183,0.00042241,80]
[394818400,1763983790019,-407.34065512,0.00042241,30]
[394818401,1763983790046,-253.78014312,0.00042241,30]
[394818402,1763983790070,-594.78667306,0.00042241,120]
[394818403,1763983790094,-756.79599051,0.00042241,120]
[394818404,1763983790121,-282.20011425,0.00042241,30]
[394818405,1763983790144,-523.93091481,0.00042241,30]
[394818406,1763983790168,-152.09931927,0.00042241,30]
[394818407,1763983790389,-239.98584928,0.00042241,90]
[394818408,1763983790413,-559.2428397,0.00042241,120]
[394818409,1763983790435,-215.35392286,0.00042241,31]
[394818410,1763983790458,-1605.7883431,0.00042241,120]
[394818411,1763983790479,-1085.4043682,0.00042241,120]
[394818412,1763983790501,-283.65860042,0.00042241,30]
[394818413,1763983790523,-1179.13866607,0.00042241,120]
[394818414,1763983790545,-756.0,0.00042241,120]
[394818415,1763983790569,-476.07638745,0.00042241,30]
[394818416,1763983790592,-581.34861057,0.00042241,120]
[394818417,1763983790617,-512.21015973,0.00042241,120]
[394818418,1763983790640,-220.03976635,0.00042241,120]
[394818419,1763983790663,-1127.96814958,0.00042241,30]
[394818420,1763983790685,-277.17593282,0.00042241,30]
[394818421,1763983790712,-1233.71281745,0.00042241,120]
[394818422,1763983790737,-2036.39600297,0.00042241,120]
[394818423,1763983790760,-1334.14643979,0.00042241,30]
[394818424,1763983790785,-1165.83683074,0.00042241,120]
[394818425,1763983790807,-280.5746877,0.00042241,30]
[394818426,1763983790830,-1598.77765002,0.00042241,60]
[394818427,1763983790852,-2086.43215026,0.00042241,48]
[394818428,1763983790876,-1095.03873895,0.00042241,30]
[394818429,1763983790899,-160.11105663,0.00042241,120]
[394818430,1763983790922,-203.04001882,0.00042241,30]
[394818431,1763983790946,-195.7830871,0.00042241,120]
[394818432,1763983790971,-686.67300784,0.00042241,120]
[394818433,1763983790995,-498.94716666,0.00042241,60]
[394818434,1763983791019,-874.05413466,0.00042241,30]
[394818435,1763983791042,-746.09086881,0.00042241,120]
[394818436,1763983791067,-865.19939069,0.00042241,120]
[394818437,1763983791091,-158.37600995,0.00042241,120]
[394818438,1763983791119,-291.39512866,0.00042241,120]
[394818439,1763983791143,-371.44449783,0.00042241,120]
[394818440,1763983791166,-1060.0,0.00042241,120]
[394818441,1763983791190,-1950.23189453,0.00042241,30]
[394818442,1763983791213,-1372.70544168,0.00042241,45]
[394818443,1763983791236,-649.08247356,0.00042241,30]
[394818444,1763983791259,-500.0,0.00042241,120]
[394818445,1763983791282,-185.70890822,0.00042241,120]
[394818446,1763983791306,-1416.83183203,0.00042241,120]
[394818447,1763983791333,-161.48777668,0.00042241,120]
[394818448,1763983791356,-2581.86615649,0.00042241,30]
[394818449,1763983791379,-658.0,0.00042241,120]
[394818450,1763983791401,-191.71301908,0.00042241,30]
[394818451,1763983791424,-184.35638795,0.00042241,60]
[394818452,1763983791447,-2234.73010046,0.00042241,120]
[394818453,1763983791469,-152.51969284,0.00042241,120]
[394818454,1763983791492,-7047.40575116,0.00042241,120]
[394818455,1763983791514,-1603.88612492,0.00042241,120]
[394818456,1763983791536,-204.89488682,0.00042241,120]
[394818457,1763983791559,-3438.90992239,0.00042241,30]
[394818458,1763983791581,-1139.0,0.00042241,120]
[394818459,1763983791604,-1237.0,0.00042241,120]
[394818460,1763983791628,-300.0,0.00042241,30]
[394818461,1763983791651,-261.56582131,0.00042241,30]
[394818462,1763983791674,-300.0,0.00042241,30]
[394818463,1763983791706,-200.0,0.00042241,30]
[394818464,1763983791737,-300.0,0.00042241,30]
[394818465,1763983791769,-200.0,0.00042241,30]
[394818466,1763983791804,-300.0,0.00042241,30]
[394818467,1763983791836,-200.0,0.00042241,30]
[394818468,1763983791867,-300.0,0.00042241,30]
[394818469,1763983791900,-200.0,0.00042241,30]
[394818470,1763983791935,-1445.14277807,0.00042241,30]
[394818471,1763983791968,-3737.18950529,0.00042241,30]
[394818472,1763983792000,-231.60992061,0.00042241,120]
[394818473,1763983792033,-1960.17257922,0.00042241,30]
[394818474,1763983792067,-20928.31781631,0.00042241,120]
[394818475,1763983792100,-635.05791031,0.00042241,30]
[394818476,1763983792133,-446.999999,0.00042241,120]
[394818477,1763983792162,-3148338.8516662,0.00042241,30]
[394818478,1763983798583,-92821.07542714,0.00042241,30]
[394818479,1763983798606,-8071.999999,0.00042241,120]
[394818480,1763983798630,-323.00478557,0.00042241,30]
[394818481,1763983798653,-4000.0,0.00042241,30]
[394818482,1763983798675,-4000.0,0.00042241,30]
[394818483,1763983798700,-50000.0,0.00042241,30]
[394818484,1763983798725,-50000.0,0.00042241,31]
[394818485,1763983798749,-50000.0,0.00042241,32]
[394818486,1763983798771,-527.09099026,0.00042241,30]
[394818487,1763983798793,-500.0,0.00042241,30]
[394818488,1763983798816,-500.0,0.00042241,30]
[394818489,1763983798838,-500.0,0.00042241,30]
[394818490,1763983798864,-500.0,0.00042241,30]
[394818491,1763983798899,-500.0,0.00042241,30]
[394818492,1763983798924,-500.0,0.00042241,30]
[394818493,1763983798950,-500.0,0.00042241,30]
[394818494,1763983798974,-2322458.0,0.00042241,90]
[394818495,1763983798998,-1000000.0,0.00042241,60]
[394818496,1763983799026,-50000.0,0.00042241,60]
[394818497,1763983799051,-10000.0,0.00042241,30]
[394818498,1763983799074,-1257.01,0.00042241,120]
[394818499,1763983799098,-576.61,0.00042241,120]
[394818500,1763983799127,-2000.0,0.00042241,31]
[394818501,1763983799152,-670.0,0.00042241,120]
[394818502,1763983799176,-43105.09,0.00042241,90]
[394818503,1763983799200,-4769.22875862,0.00042241,30]
[394818504,1763983799224,-412.66288529,0.00042241,120]
[394818505,1763983799247,-25000.0,0.00042241,30]
[394818506,1763983799271,-237.25070967,0.00042241,120]
[394818507,1763983799297,-150.0,0.00042241,30]
[394818508,1763983799322,-150.0,0.00042241,30]
[394818509,1763983799346,-150.0,0.00042241,30]
[394818510,1763983799370,-150.0,0.00042241,30]
[394818511,1763983799399,-150.0,0.00042241,30]
[394818512,1763983799422,-150.0,0.00042241,30]
[394818513,1763983799446,-150.0,0.00042241,30]
[394818514,1763983799470,-150.0,0.00042241,30]
[394818515,1763983799494,-150.0,0.00042241,30]
[394818516,1763983799521,-150.0,0.00042241,30]
[394818517,1763983799547,-150.0,0.00042241,30]
[394818518,1763983799572,-150.0,0.00042241,30]
[394818519,1763983799599,-150.0,0.00042241,30]
[394818520,1763983799623,-150.0,0.00042241,30]
[394818521,1763983799646,-150.0,0.00042241,30]
[394818522,1763983799670,-150.0,0.00042241,30]
[394818523,1763983799694,-150.0,0.00042241,30]
[394818524,1763983799718,-150.0,0.00042241,30]
[394818525,1763983799746,-150.0,0.00042241,30]
[394818526,1763983799769,-150.0,0.00042241,30]
[394818527,1763983799792,-150.0,0.00042241,30]
[394818528,1763983799816,-150.0,0.00042241,30]
[394818529,1763983799840,-150.0,0.00042241,30]
[394818530,1763983799865,-150.0,0.00042241,30]
[394818531,1763983799889,-150.0,0.00042241,30]
[394818532,1763983799914,-178.65680552,0.00042241,30]
[394818533,1763983799939,-5000.0,0.00042241,120]
[394818534,1763983799968,-5000.0,0.00042241,120]
[394818535,1763983799991,-1082.47234972,0.00042241,120]
[394818536,1763983800014,-636.8289438,0.00042241,30]
[394818537,1763983800037,-201.0,0.00042241,30]
[394818538,1763983800286,-312.90161007,0.00042241,30]
[394818539,1763983800311,-167.9243532,0.00042241,60]
[394818540,1763983800336,-489.22501624,0.00042241,30]
[394818541,1763983800361,-1999.999996,0.00042241,120]
[394818542,1763983800383,-187.08120429,0.00042241,60]
[394818543,1763983800407,-1029.74792549,0.00042241,120]
[394818544,1763983800430,-203.43119,0.00042241,60]
[394818545,1763983800454,-959.48171913,0.00042241,120]
[394818546,1763983800477,-158.0,0.00042241,120]
[394818547,1763983800501,-1451.22396302,0.00042241,120]
[394818548,1763983800525,-12201.0,0.00042241,30]
[394818549,1763983800548,-1044.0,0.00042241,30]
[394818550,1763983800570,-257.7646776,0.00042241,30]
[394818551,1763983800592,-112646.59239539,0.00042241,30]
[394818552,1763983800615,-324.79036217,0.00042241,30]
[394818553,1763983800638,-339.55055002,0.00042241,30]
[394818554,1763983800661,-392.68854425,0.00042241,120]
[394818555,1763983800683,-1513.14483775,0.00042241,120]
[394818556,1763983800707,-161.46515641,0.00042241,120]
[394818557,1763983800730,-150.28983069,0.00042241,120]
[394818558,1763983800753,-1348.89671754,0.00042241,120]
[394818559,1763983800776,-1358.82194068,0.00042241,30]
[394818560,1763983800799,-256.80111722,0.00042241,90]
[394818561,1763983800821,-480.99255237,0.00042241,120]
[394818562,1763983800844,-3900.0,0.00042241,120]
[394818563,1763983800868,-56323.70030509,0.00042241,30]
[394818564,1763983800890,-60762.50238079,0.00042241,30]
[394818565,1763983810171,-32169.22737666,0.00042241,30]
[394818566,1763983810195,-5175.66728594,0.00042241,30]
[394818567,1763983810219,-9170.27327589,0.00042241,33]
[394818568,1763983810242,-15000.0,0.00042241,120]
[394818569,1763983810266,-10000.0,0.00042241,120]
[394818570,1763983810290,-10000.0,0.00042241,120]
[394818571,1763983810314,-801.634635,0.00042241,60]
[394818572,1763983810343,-151.12002324,0.00042241,120]
[394818573,1763983810368,-134405.53593035,0.00042241,120]
[394818574,1763983810392,-999.99999901,0.00042241,30]
[394818575,1763983810416,-3210.05449961,0.00042241,31]
[394818576,1763983810440,-523.29590744,0.00042241,30]
[394818577,1763983810464,-2034.12652921,0.00042241,120]
[394818578,1763983810488,-31109.13,0.00042241,30]
[394818579,1763983810511,-43877.47,0.00042241,90]
[394818580,1763983810534,-12779.81214452,0.00042241,120]
[394818581,1763983810557,-274.08335107,0.00042241,120]
[394818582,1763983810582,-1431.5564536,0.00042241,120]
[394818583,1763983810606,-2143.68489528,0.00042241,30]
[394818584,1763983810629,-14755.23,0.00042241,30]
[394818585,1763983810656,-50000.0,0.00042241,33]
[394818586,1763983810681,-250000.0,0.00042241,60]
[394818587,1763983810705,-491579.0,0.00042241,45]
[394818588,1763983810728,-749.73899812,0.00042241,120]
[394818589,1763983810752,-775.0,0.00042241,120]
[394818590,1763983810775,-1096.0,0.00042241,30]
[394818591,1763983810798,-1096.0,0.00042241,30]
[394818592,1763983810822,-1096.0,0.00042241,30]
[394818593,1763983810846,-1040.50012467,0.00042241,30]
[394818594,1763983810874,-1096.0,0.00042241,30]
[394818595,1763983810899,-837.56809942,0.00042241,120]
[394818596,1763983810922,-187870.22207835,0.00042241,30]
[394818597,1763983810947,-110548.96496695,0.00042241,30]
[394818598,1763983810971,-1096.0,0.00042241,30]
[394818599,1763983810994,-151.0,0.00042241,50]
[394818600,1763983811019,-151.0,0.00042241,50]
[394818601,1763983811045,-1096.0,0.00042241,30]
[394818602,1763983811069,-1096.0,0.00042241,30]
[394818603,1763983811092,-1097.06612104,0.00042241,120]
[394818604,1763983811119,-1096.0,0.00042241,30]
[394818605,1763983811145,-151.0,0.00042241,50]
[394818606,1763983811171,-151.0,0.00042241,50]
[394818607,1763983811195,-151.0,0.00042241,50]
[394818608,1763983811218,-151.0,0.00042241,50]
[394818609,1763983811242,-151.0,0.00042241,50]
[394818610,1763983811266,-151.0,0.00042241,50]
[394818611,1763983811290,-151.0,0.00042241,50]
[394818612,1763983811314,-151.0,0.00042241,50]
[394818613,1763983811339,-151.0,0.00042241,50]
[394818614,1763983811363,-151.0,0.00042241,50]
[394818615,1763983811390,-151.0,0.00042241,50]
[394818616,1763983811414,-151.0,0.00042241,50]
[394818617,1763983811438,-151.0,0.00042241,50]
[394818618,1763983811462,-151.0,0.00042241,50]
[394818619,1763983811486,-151.0,0.00042241,50]
[394818620,1763983811511,-151.0,0.00042241,50]
[394818621,1763983811537,-151.0,0.00042241,50]
[394818622,1763983811562,-151.0,0.00042241,50]
[394818623,1763983811587,-183.858389,0.00042241,50]
[394818624,1763983811611,-151.0,0.00042241,50]
[394818625,1763983811638,-151.0,0.00042241,50]
[394818626,1763983811662,-151.0,0.00042241,50]
[394818627,1763983811686,-151.0,0.00042241,50]
[394818628,1763983811710,-181.616462,0.00042241,50]
[394818629,1763983811734,-151.0,0.00042241,50]
[394818630,1763983811759,-238.215133,0.00042241,50]
[394818631,1763983811785,-151.0,0.00042241,50]
[394818632,1763983811809,-238.215133,0.00042241,50]
[394818633,1763983811834,-151.0,0.00042241,50]
[394818634,1763983811859,-238.215133,0.00042241,50]
[394818635,1763983811885,-151.0,0.00042241,50]
[394818636,1763983811910,-238.215133,0.00042241,50]
[394818637,1763983811934,-151.0,0.00042241,50]
[394818638,1763983811959,-238.215133,0.00042241,50]
[394818639,1763983811983,-151.0,0.00042241,50]
[394818640,1763983812009,-151.0,0.00042241,50]
[394818641,1763983812039,-151.0,0.00042241,50]
[394818642,1763983812063,-238.215133,0.00042241,50]
[394818643,1763983812087,-238.215133,0.00042241,50]
[394818644,1763983812116,-151.0,0.00042241,50]
[394818645,1763983812142,-238.215133,0.00042241,50]
[394818646,1763983812167,-238.215133,0.00042241,50]
[394818647,1763983812191,-238.215133,0.00042241,50]
[394818648,1763983812215,-238.215133,0.00042241,50]
[394818649,1763983812239,-238.215133,0.00042241,50]
[394818650,1763983812262,-238.215133,0.00042241,50]